[Event "*** Titled Tuesday 3|2 Blitz (Early)"]
[Site "Chess.com"]
[Date "2016.12.06"]
[Round "5"]
[White "JohanSalomon"]
[Black "jup1978"]
[Result "1-0"]
[WhiteElo "2391"]
[BlackElo "2249"]
[TimeControl "180+2"]
[EndTime "11:58:32 PST"]
[Termination "JohanSalomon won by checkmate"]

1. Nf3 {[%clk 0:02:59.8]} 1... d5 {[%clk 0:02:45.9]} 2. g3 {[%clk 0:03:00.5]}
2... c6 {[%clk 0:02:44]} 3. Bg2 {[%clk 0:03:01.9]} 3... Bg4 {[%clk 0:02:45.6]}
4. O-O {[%clk 0:03:02.6]} 4... Nd7 {[%clk 0:02:46.6]} 5. d3 {[%clk 0:03:04.2]}
5... Ngf6 {[%clk 0:02:47.5]} 6. h3 {[%clk 0:03:05.6]} 6... Bxf3 {[%clk
0:02:47.7]} 7. Bxf3 {[%clk 0:03:06.5]} 7... e5 {[%clk 0:02:47.4]} 8. Bg2 {[%clk
0:03:08]} 8... Bd6 {[%clk 0:02:47.9]} 9. e3 {[%clk 0:03:09.6]} 9... O-O {[%clk
0:02:48.4]} 10. b3 {[%clk 0:03:10.9]} 10... Qe7 {[%clk 0:02:49.2]} 11. a3 {[%clk
0:03:12.1]} 11... Rfe8 {[%clk 0:02:50.2]} 12. Bb2 {[%clk 0:03:13.7]} 12... a5
{[%clk 0:02:50.5]} 13. Nd2 {[%clk 0:03:15.4]} 13... e4 {[%clk 0:02:46.7]} 14.
dxe4 {[%clk 0:03:00.2]} 14... Nxe4 {[%clk 0:02:48.6]} 15. Bxe4 {[%clk
0:02:42.5]} 15... dxe4 {[%clk 0:02:50.5]} 16. Nxe4 {[%clk 0:02:44]} 16... Qxe4
{[%clk 0:02:40.8]} 17. Qxd6 {[%clk 0:02:44.8]} 17... Qxc2 {[%clk 0:02:41.6]} 18.
Bxg7 {[%clk 0:02:44.3]} 18... Kxg7 {[%clk 0:02:35.6]} 19. Qxd7 {[%clk
0:02:39.4]} 19... Qxb3 {[%clk 0:02:36.5]} 20. Qg4+ {[%clk 0:02:35.8]} 20... Kf8
{[%clk 0:02:29.2]} 21. Rab1 {[%clk 0:02:19.4]} 21... Qxa3 {[%clk 0:02:26.8]} 22.
Rxb7 {[%clk 0:02:21]} 22... Re7 {[%clk 0:02:27.6]} 23. Qd4 {[%clk 0:02:16.3]}
23... Rxb7 {[%clk 0:02:19.6]} 24. Qh8+ {[%clk 0:02:17.2]} 24... Ke7 {[%clk
0:02:21.1]} 25. Qxa8 {[%clk 0:02:19.1]} 25... Qb4 {[%clk 0:02:18.5]} 26. Rd1
{[%clk 0:02:06.9]} 26... Qb6 {[%clk 0:02:15.8]} 27. Qh8 {[%clk 0:02:01.1]} 27...
Qb3 {[%clk 0:01:59.2]} 28. Qd8+ {[%clk 0:01:30.1]} 28... Ke6 {[%clk 0:01:59.9]}
29. Rd6+ {[%clk 0:01:31.6]} 29... Ke5 {[%clk 0:01:52]} 30. Qf6+ {[%clk
0:01:33.5]} 30... Ke4 {[%clk 0:01:51.6]} 31. Rd4# {[%clk 0:01:33.7]} 1-0

[Event "*** Titled Tuesday 3|2 Blitz (Early)"]
[Site "Chess.com"]
[Date "2016.12.06"]
[Round "5"]
[White "WanderingPuppet"]
[Black "Quiet_Desperation"]
[Result "1/2-1/2"]
[WhiteElo "2304"]
[BlackElo "2311"]
[TimeControl "180+2"]
[EndTime "11:58:47 PST"]
[Termination "Game drawn by agreement"]

1. e4 {[%clk 0:03:00.6]} 1... Nc6 {[%clk 0:02:58.5]} 2. Nf3 {[%clk 0:03:00.9]}
2... d6 {[%clk 0:02:57.8]} 3. Nc3 {[%clk 0:02:59.5]} 3... Nf6 {[%clk 0:02:58]}
4. Bb5 {[%clk 0:02:59.2]} 4... e5 {[%clk 0:02:58]} 5. d4 {[%clk 0:02:58.8]} 5...
exd4 {[%clk 0:02:59.2]} 6. Qxd4 {[%clk 0:02:59.1]} 6... Bd7 {[%clk 0:02:58.6]}
7. Bxc6 {[%clk 0:03:00.3]} 7... bxc6 {[%clk 0:02:59.6]} 8. Bg5 {[%clk 0:03:02]}
8... Be7 {[%clk 0:03:00.4]} 9. e5 {[%clk 0:02:59.7]} 9... dxe5 {[%clk
0:02:24.3]} 10. Nxe5 {[%clk 0:03:01.6]} 10... h6 {[%clk 0:02:19.3]} 11. Bh4
{[%clk 0:03:01.6]} 11... O-O {[%clk 0:02:11.3]} 12. O-O {[%clk 0:02:58.1]} 12...
c5 {[%clk 0:01:55.7]} 13. Qd3 {[%clk 0:02:55.8]} 13... Bd6 {[%clk 0:01:50.6]}
14. Nxd7 {[%clk 0:02:53.9]} 14... Qxd7 {[%clk 0:01:49.6]} 15. Bxf6 {[%clk
0:02:54.8]} 15... gxf6 {[%clk 0:01:51.5]} 16. Ne4 {[%clk 0:02:54.6]} 16... Qf5
{[%clk 0:01:44.2]} 17. Rad1 {[%clk 0:02:48.8]} 17... Rad8 {[%clk 0:01:41.7]} 18.
Nxd6 {[%clk 0:02:40.1]} 18... Qxd3 {[%clk 0:01:42.1]} 19. Rxd3 {[%clk
0:02:41.4]} 19... Rxd6 {[%clk 0:01:41.7]} 20. Rfd1 {[%clk 0:02:37.9]} 20... Rfd8
{[%clk 0:01:39.6]} 21. Kf1 {[%clk 0:02:34.1]} 21... Kf8 {[%clk 0:01:36.5]} 22.
Ke2 {[%clk 0:02:32.3]} 22... Ke7 {[%clk 0:01:31.1]} 23. Rxd6 {[%clk 0:02:12.3]}
23... cxd6 {[%clk 0:01:30.1]} 24. Rd3 {[%clk 0:02:00.8]} 24... d5 {[%clk
0:01:23]} 25. Ra3 {[%clk 0:02:01.1]} 25... Rd7 {[%clk 0:01:23.6]} 26. Ra5 {[%clk
0:02:01.8]} 26... Kd6 {[%clk 0:01:24.3]} 27. Ra6+ {[%clk 0:01:59.8]} 27... Ke5
{[%clk 0:01:18.8]} 28. Ra5 {[%clk 0:01:57.4]} 28... Rc7 {[%clk 0:01:17.1]} 29.
Ra6 {[%clk 0:01:46.3]} 29... h5 {[%clk 0:01:11.2]} 1/2-1/2

[Event "*** Titled Tuesday 3|2 Blitz (Early)"]
[Site "Chess.com"]
[Date "2016.12.06"]
[Round "5"]
[White "Aguiar94"]
[Black "josiwales"]
[Result "1-0"]
[WhiteElo "2358"]
[BlackElo "2246"]
[TimeControl "180+2"]
[EndTime "11:58:52 PST"]
[Termination "Aguiar94 won by resignation"]

1. e4 {[%clk 0:03:02]} 1... c5 {[%clk 0:03:00.9]} 2. Nf3 {[%clk 0:03:02.5]} 2...
Nc6 {[%clk 0:03:02.6]} 3. d4 {[%clk 0:03:04]} 3... cxd4 {[%clk 0:03:04.5]} 4.
Nxd4 {[%clk 0:03:05.9]} 4... g6 {[%clk 0:03:06.1]} 5. Nc3 {[%clk 0:03:06.6]}
5... Bg7 {[%clk 0:03:07.6]} 6. Nb3 {[%clk 0:03:08.2]} 6... Nf6 {[%clk
0:03:08.4]} 7. g4 {[%clk 0:03:09.7]} 7... h6 {[%clk 0:02:40.2]} 8. Be2 {[%clk
0:02:59.7]} 8... d6 {[%clk 0:02:39.2]} 9. f4 {[%clk 0:02:54.7]} 9... e5 {[%clk
0:02:34.7]} 10. f5 {[%clk 0:02:53.9]} 10... h5 {[%clk 0:02:19]} 11. g5 {[%clk
0:02:49.7]} 11... Ng4 {[%clk 0:02:19.6]} 12. h3 {[%clk 0:02:27.2]} 12... Nf6
{[%clk 0:02:03.1]} 13. gxf6 {[%clk 0:02:21.3]} 13... Bxf6 {[%clk 0:02:05]} 14.
O-O {[%clk 0:02:00.1]} 14... gxf5 {[%clk 0:02:04]} 15. exf5 {[%clk 0:01:57.2]}
15... Rg8+ {[%clk 0:02:04.4]} 16. Kh2 {[%clk 0:01:52.4]} 16... Bh4 {[%clk
0:02:02.6]} 17. Bxh5 {[%clk 0:01:32.7]} 17... Bg3+ {[%clk 0:01:59.7]} 18. Kh1
{[%clk 0:01:34.1]} 18... Qh4 {[%clk 0:02:00.6]} 19. Bg4 {[%clk 0:01:35.6]} 19...
Ne7 {[%clk 0:01:49.7]} 20. Ne4 {[%clk 0:01:26.7]} 20... Nxf5 {[%clk 0:01:44]}
21. Rxf5 {[%clk 0:01:24.5]} 21... Bxf5 {[%clk 0:01:45.9]} 22. Nxd6+ {[%clk
0:01:24.8]} 22... Kf8 {[%clk 0:01:40.7]} 23. Nxf5 {[%clk 0:01:25.3]} 23... Qh7
{[%clk 0:01:32.4]} 24. Nxg3 {[%clk 0:01:22.9]} 1-0

[Event "*** Titled Tuesday 3|2 Blitz (Early)"]
[Site "Chess.com"]
[Date "2016.12.06"]
[Round "5"]
[White "GM_Donatello"]
[Black "Izoria123"]
[Result "0-1"]
[WhiteElo "2567"]
[BlackElo "2566"]
[TimeControl "180+2"]
[EndTime "11:59:20 PST"]
[Termination "Izoria123 won by resignation"]

1. e4 {[%clk 0:03:02]} 1... c5 {[%clk 0:03:00.3]} 2. Nf3 {[%clk 0:03:02.7]} 2...
d6 {[%clk 0:03:01.6]} 3. Bb5+ {[%clk 0:03:03.5]} 3... Nd7 {[%clk 0:03:02.1]} 4.
O-O {[%clk 0:03:04]} 4... a6 {[%clk 0:03:03]} 5. Bd3 {[%clk 0:03:04.6]} 5...
Ngf6 {[%clk 0:03:02.6]} 6. Re1 {[%clk 0:03:06]} 6... e6 {[%clk 0:02:58.2]} 7. c3
{[%clk 0:03:06.8]} 7... Be7 {[%clk 0:02:57.3]} 8. Bc2 {[%clk 0:03:08]} 8... c4
{[%clk 0:02:54.6]} 9. b3 {[%clk 0:03:06.3]} 9... b5 {[%clk 0:02:54.6]} 10. Na3
{[%clk 0:02:49.2]} 10... Qc7 {[%clk 0:02:54.4]} 11. Qe2 {[%clk 0:02:29.1]} 11...
Nb6 {[%clk 0:02:54.3]} 12. bxc4 {[%clk 0:02:26.2]} 12... bxc4 {[%clk 0:02:54]}
13. e5 {[%clk 0:02:25.9]} 13... Nfd7 {[%clk 0:02:42.4]} 14. Qe4 {[%clk
0:02:16.7]} 14... Bb7 {[%clk 0:02:30.5]} 15. Qg4 {[%clk 0:02:17.2]} 15... Bxf3
{[%clk 0:02:26.6]} 16. Qxf3 {[%clk 0:02:06.7]} 16... Nxe5 {[%clk 0:02:24.3]} 17.
Qg3 {[%clk 0:02:07.9]} 17... O-O {[%clk 0:02:24.4]} 18. Rb1 {[%clk 0:02:07.3]}
18... Rab8 {[%clk 0:02:21.4]} 19. d4 {[%clk 0:02:06.5]} 19... cxd3 {[%clk
0:02:21.4]} 20. Bxd3 {[%clk 0:02:06.2]} 20... Nxd3 {[%clk 0:02:13.4]} 21. Qxd3
{[%clk 0:02:08.1]} 21... d5 {[%clk 0:02:08.5]} 22. Nc2 {[%clk 0:02:08.2]} 22...
Nc4 {[%clk 0:02:08.6]} 23. Rb3 {[%clk 0:02:08.6]} 23... Bd6 {[%clk 0:02:07.6]}
24. h3 {[%clk 0:02:08.8]} 24... Be5 {[%clk 0:02:03.9]} 25. Nd4 {[%clk
0:02:08.1]} 25... Rfc8 {[%clk 0:01:59.2]} 26. h4 {[%clk 0:02:06.3]} 26... Bf6
{[%clk 0:01:58.7]} 27. h5 {[%clk 0:02:07.3]} 27... h6 {[%clk 0:01:59.5]} 28. Qh3
{[%clk 0:02:06.4]} 28... Na5 {[%clk 0:01:46.6]} 29. Rxb8 {[%clk 0:02:06.3]}
29... Rxb8 {[%clk 0:01:47.7]} 30. Qf3 {[%clk 0:01:54.8]} 30... Rc8 {[%clk
0:01:46.6]} 31. Bd2 {[%clk 0:01:55.4]} 31... Nc4 {[%clk 0:01:43.7]} 32. Bc1
{[%clk 0:01:56]} 32... Nd6 {[%clk 0:01:43.3]} 33. Bf4 {[%clk 0:01:54]} 33...
Qxc3 {[%clk 0:01:37.1]} 34. Qxc3 {[%clk 0:01:54.7]} 34... Rxc3 {[%clk 0:01:39]}
35. Nxe6 {[%clk 0:01:56.2]} 35... fxe6 {[%clk 0:01:22.2]} 36. Bxd6 {[%clk
0:01:57]} 36... Rc6 {[%clk 0:01:14]} 37. Bf4 {[%clk 0:01:58]} 37... Kf7 {[%clk
0:01:12.5]} 38. g3 {[%clk 0:01:57]} 38... Rc2 {[%clk 0:01:09.7]} 39. Rb1 {[%clk
0:01:57.8]} 39... e5 {[%clk 0:01:09]} 40. Rb7+ {[%clk 0:01:58.3]} 40... Ke6
{[%clk 0:01:09.4]} 0-1

[Event "*** Titled Tuesday 3|2 Blitz (Early)"]
[Site "Chess.com"]
[Date "2016.12.06"]
[Round "5"]
[White "Matibar"]
[Black "jncool68"]
[Result "0-1"]
[WhiteElo "2546"]
[BlackElo "2501"]
[TimeControl "180+2"]
[EndTime "11:59:44 PST"]
[Termination "jncool68 won by checkmate"]

1. e4 {[%clk 0:03:00.1]} 1... c5 {[%clk 0:02:59.4]} 2. Ne2 {[%clk 0:03:00.7]}
2... d6 {[%clk 0:02:58.1]} 3. g3 {[%clk 0:03:01.9]} 3... f5 {[%clk 0:02:58.1]}
4. exf5 {[%clk 0:03:00.1]} 4... Bxf5 {[%clk 0:02:57.8]} 5. Bg2 {[%clk
0:02:59.4]} 5... Nc6 {[%clk 0:02:58.8]} 6. d4 {[%clk 0:03:01]} 6... e5 {[%clk
0:02:48.7]} 7. c3 {[%clk 0:02:30]} 7... Nf6 {[%clk 0:02:36.9]} 8. dxc5 {[%clk
0:02:25.9]} 8... dxc5 {[%clk 0:02:37.3]} 9. Qxd8+ {[%clk 0:02:27.6]} 9... Rxd8
{[%clk 0:02:37.4]} 10. Be3 {[%clk 0:02:28.3]} 10... Na5 {[%clk 0:02:26.3]} 11.
Nd2 {[%clk 0:02:28.7]} 11... b6 {[%clk 0:02:26]} 12. h3 {[%clk 0:02:28.8]} 12...
Bd3 {[%clk 0:02:26.2]} 13. g4 {[%clk 0:02:27.3]} 13... Nd5 {[%clk 0:02:24.1]}
14. Bxd5 {[%clk 0:01:48.9]} 14... Rxd5 {[%clk 0:02:24.2]} 15. Ng3 {[%clk
0:01:50.3]} 15... Be7 {[%clk 0:02:21.6]} 16. O-O-O {[%clk 0:01:51.8]} 16... O-O
{[%clk 0:02:18.1]} 17. h4 {[%clk 0:01:52.3]} 17... Rfd8 {[%clk 0:02:18.9]} 18.
Bg5 {[%clk 0:01:42.5]} 18... Bxg5 {[%clk 0:02:16.1]} 19. hxg5 {[%clk 0:01:44.4]}
19... c4 {[%clk 0:02:08.9]} 20. Nf5 {[%clk 0:01:09.8]} 20... R5d7 {[%clk
0:01:49.7]} 21. Rhe1 {[%clk 0:00:51.7]} 21... Nb7 {[%clk 0:01:43.9]} 22. Rxe5
{[%clk 0:00:50.9]} 22... Nc5 {[%clk 0:01:44.9]} 23. Ne3 {[%clk 0:00:44.4]} 23...
Be2 {[%clk 0:01:43.5]} 24. Re1 {[%clk 0:00:11.4]} 24... Nd3+ {[%clk 0:01:43.8]}
25. Kb1 {[%clk 0:00:05]} 25... Nxe1 {[%clk 0:01:44.8]} 26. Ndxc4 {[%clk
0:00:05.9]} 26... Rd1+ {[%clk 0:01:45.2]} 27. Nxd1 {[%clk 0:00:06.9]} 27...
Rxd1# {[%clk 0:01:45.9]} 0-1

[Event "*** Titled Tuesday 3|2 Blitz (Early)"]
[Site "Chess.com"]
[Date "2016.12.06"]
[Round "5"]
[White "Jungle_Jaguar"]
[Black "VitaliyBernadskiy"]
[Result "0-1"]
[WhiteElo "2404"]
[BlackElo "2582"]
[TimeControl "180+2"]
[EndTime "11:59:58 PST"]
[Termination "VitaliyBernadskiy won by resignation"]

1. c4 {[%clk 0:03:02]} 1... e5 {[%clk 0:02:59.3]} 2. g3 {[%clk 0:03:02.4]} 2...
Nc6 {[%clk 0:02:59.1]} 3. Bg2 {[%clk 0:03:03.2]} 3... d6 {[%clk 0:03:00.6]} 4.
Nc3 {[%clk 0:03:04.3]} 4... Be6 {[%clk 0:03:02.1]} 5. d3 {[%clk 0:03:04.1]} 5...
Qd7 {[%clk 0:03:03.3]} 6. e4 {[%clk 0:03:03.9]} 6... Nge7 {[%clk 0:03:03.5]} 7.
Nge2 {[%clk 0:03:04.8]} 7... Bh3 {[%clk 0:03:01.2]} 8. Bxh3 {[%clk 0:02:10.4]}
8... Qxh3 {[%clk 0:03:01.3]} 9. Nd5 {[%clk 0:02:10.7]} 9... Rc8 {[%clk
0:02:47.7]} 10. Be3 {[%clk 0:02:07.3]} 10... Ng6 {[%clk 0:02:41.5]} 11. Qd2
{[%clk 0:01:59.3]} 11... Be7 {[%clk 0:02:39.5]} 12. O-O-O {[%clk 0:01:50.1]}
12... O-O {[%clk 0:02:40.1]} 13. f4 {[%clk 0:01:50.5]} 13... exf4 {[%clk
0:02:40.6]} 14. Nexf4 {[%clk 0:01:51.1]} 14... Nxf4 {[%clk 0:02:41.3]} 15. gxf4
{[%clk 0:01:48.8]} 15... Rfe8 {[%clk 0:02:42.1]} 16. Rdg1 {[%clk 0:01:43.7]}
16... Kh8 {[%clk 0:02:37]} 17. Rg3 {[%clk 0:01:29.8]} 17... Qh5 {[%clk
0:02:35.9]} 18. Rhg1 {[%clk 0:01:29.6]} 18... Rg8 {[%clk 0:02:28.4]} 19. b4
{[%clk 0:01:01.9]} 19... Bf6 {[%clk 0:02:10.1]} 20. b5 {[%clk 0:00:35.3]} 20...
Ne7 {[%clk 0:02:09]} 21. Nxf6 {[%clk 0:00:36.2]} 21... gxf6 {[%clk 0:02:10.2]}
22. Bd4 {[%clk 0:00:30.5]} 22... Qh6 {[%clk 0:02:11.2]} 23. Qc3 {[%clk
0:00:13.8]} 23... Qxf4+ {[%clk 0:02:04.7]} 24. Kb1 {[%clk 0:00:14.5]} 24... Rxg3
{[%clk 0:01:59.7]} 25. Bxf6+ {[%clk 0:00:13.6]} 25... Kg8 {[%clk 0:01:58.1]} 26.
Rxg3+ {[%clk 0:00:14.1]} 26... Ng6 {[%clk 0:01:58.6]} 27. Kb2 {[%clk 0:00:12.7]}
27... Qf2+ {[%clk 0:01:55.1]} 28. Qc2 {[%clk 0:00:12.3]} 28... Qxf6+ {[%clk
0:01:55.3]} 29. Ka3 {[%clk 0:00:11.7]} 29... a6 {[%clk 0:01:53.8]} 30. b6 {[%clk
0:00:10.4]} 30... cxb6 {[%clk 0:01:54.5]} 31. Qd1 {[%clk 0:00:10.6]} 31... Rc5
{[%clk 0:01:53.9]} 0-1

[Event "*** Titled Tuesday 3|2 Blitz (Early)"]
[Site "Chess.com"]
[Date "2016.12.06"]
[Round "5"]
[White "kleinebeer98"]
[Black "bugsbunny444"]
[Result "1-0"]
[WhiteElo "2494"]
[BlackElo "2399"]
[TimeControl "180+2"]
[EndTime "12:00:35 PST"]
[Termination "kleinebeer98 won by checkmate"]

1. e4 {[%clk 0:03:02]} 1... e6 {[%clk 0:03:00.9]} 2. d4 {[%clk 0:03:01.8]} 2...
d5 {[%clk 0:03:02.4]} 3. Nc3 {[%clk 0:02:56.6]} 3... Nf6 {[%clk 0:03:03.4]} 4.
Bg5 {[%clk 0:02:54.3]} 4... Bb4 {[%clk 0:03:03.5]} 5. exd5 {[%clk 0:02:54.4]}
5... Qxd5 {[%clk 0:03:03.5]} 6. Bxf6 {[%clk 0:02:54.2]} 6... Bxc3+ {[%clk
0:03:05]} 7. bxc3 {[%clk 0:02:55.1]} 7... gxf6 {[%clk 0:03:06.9]} 8. Nf3 {[%clk
0:02:56.4]} 8... b6 {[%clk 0:02:59.9]} 9. g3 {[%clk 0:02:50.6]} 9... Bb7 {[%clk
0:02:44.2]} 10. Bg2 {[%clk 0:02:51.5]} 10... Qa5 {[%clk 0:02:18.6]} 11. Qd2
{[%clk 0:02:45.3]} 11... Nd7 {[%clk 0:02:16.2]} 12. O-O {[%clk 0:02:38.9]} 12...
O-O-O {[%clk 0:02:15.8]} 13. Rab1 {[%clk 0:02:32.1]} 13... Ne5 {[%clk
0:01:32.6]} 14. Nxe5 {[%clk 0:02:19.9]} 14... fxe5 {[%clk 0:01:34.5]} 15. Bxb7+
{[%clk 0:02:13.8]} 15... Kxb7 {[%clk 0:01:36.4]} 16. Qe3 {[%clk 0:02:14.7]}
16... Rd5 {[%clk 0:01:22.6]} 17. dxe5 {[%clk 0:02:13.9]} 17... Rxe5 {[%clk
0:01:15.4]} 18. Qf3+ {[%clk 0:02:14.9]} 18... Kb8 {[%clk 0:01:02.9]} 19. Qxf7
{[%clk 0:02:13.4]} 19... Qxc3 {[%clk 0:00:58.4]} 20. Rbd1 {[%clk 0:02:13.2]}
20... Re2 {[%clk 0:00:42.3]} 21. Rd7 {[%clk 0:01:50.9]} 21... h6 {[%clk
0:00:30.9]} 22. a4 {[%clk 0:01:35.9]} 22... Rc8 {[%clk 0:00:20.9]} 23. h4 {[%clk
0:01:31.2]} 23... a5 {[%clk 0:00:20.3]} 24. Rb1 {[%clk 0:01:27]} 24... Re1+
{[%clk 0:00:13.5]} 25. Rxe1 {[%clk 0:01:27.9]} 25... Qxe1+ {[%clk 0:00:15.4]}
26. Kh2 {[%clk 0:01:28.7]} 26... Qe4 {[%clk 0:00:16.8]} 27. c3 {[%clk
0:01:24.1]} 27... Qxa4 {[%clk 0:00:17.6]} 28. Qxe6 {[%clk 0:01:25.5]} 28... Qc2
{[%clk 0:00:16.3]} 29. Qf6 {[%clk 0:01:24.9]} 29... a4 {[%clk 0:00:11.6]} 30.
Rd4 {[%clk 0:01:26]} 30... Qxc3 {[%clk 0:00:07.9]} 31. Qf4 {[%clk 0:01:24.4]}
31... a3 {[%clk 0:00:05.5]} 32. Ra4 {[%clk 0:01:24.2]} 32... Qb2 {[%clk
0:00:05.2]} 33. Qf3 {[%clk 0:01:24.2]} 33... a2 {[%clk 0:00:06]} 34. Ra8# {[%clk
0:01:25]} 1-0

[Event "*** Titled Tuesday 3|2 Blitz (Early)"]
[Site "Chess.com"]
[Date "2016.12.06"]
[Round "5"]
[White "E-Shaposhnikov"]
[Black "Keranke"]
[Result "1-0"]
[WhiteElo "2733"]
[BlackElo "2615"]
[TimeControl "180+2"]
[EndTime "12:00:39 PST"]
[Termination "E-Shaposhnikov won by resignation"]

1. Nf3 {[%clk 0:03:01.9]} 1... g6 {[%clk 0:03:00.9]} 2. c4 {[%clk 0:03:00.9]}
2... Bg7 {[%clk 0:03:02.1]} 3. Nc3 {[%clk 0:03:01.7]} 3... Nf6 {[%clk
0:03:03.2]} 4. d4 {[%clk 0:03:00.8]} 4... O-O {[%clk 0:03:04.2]} 5. e4 {[%clk
0:03:02]} 5... d6 {[%clk 0:03:05.5]} 6. Be2 {[%clk 0:03:02.1]} 6... Bg4 {[%clk
0:03:06.3]} 7. Ng1 {[%clk 0:03:00.3]} 7... Bc8 {[%clk 0:03:02.3]} 8. Nf3 {[%clk
0:02:58.1]} 8... Bg4 {[%clk 0:03:02.6]} 9. Be3 {[%clk 0:02:57.5]} 9... Nfd7
{[%clk 0:03:03.6]} 10. Ng1 {[%clk 0:02:57.1]} 10... Bxe2 {[%clk 0:03:04.2]} 11.
Ngxe2 {[%clk 0:02:59]} 11... a6 {[%clk 0:03:04.5]} 12. O-O {[%clk 0:02:51.9]}
12... c5 {[%clk 0:03:04.4]} 13. d5 {[%clk 0:02:45.6]} 13... b5 {[%clk
0:03:04.8]} 14. Qb3 {[%clk 0:02:33.4]} 14... bxc4 {[%clk 0:02:51.9]} 15. Qxc4
{[%clk 0:02:35.3]} 15... Nb6 {[%clk 0:02:50.8]} 16. Qd3 {[%clk 0:02:29.1]} 16...
N8d7 {[%clk 0:02:51.4]} 17. b3 {[%clk 0:02:26.5]} 17... c4 {[%clk 0:02:47.7]}
18. Qd2 {[%clk 0:02:24.7]} 18... cxb3 {[%clk 0:02:23.8]} 19. axb3 {[%clk
0:02:26.6]} 19... Nc5 {[%clk 0:02:09.4]} 20. Rab1 {[%clk 0:02:23.8]} 20... a5
{[%clk 0:02:09.9]} 21. Nd4 {[%clk 0:02:24.8]} 21... Qd7 {[%clk 0:01:59.6]} 22.
Nc6 {[%clk 0:02:25.1]} 22... e6 {[%clk 0:01:47.3]} 23. Rfd1 {[%clk 0:02:13.2]}
23... exd5 {[%clk 0:01:39.1]} 24. Nxd5 {[%clk 0:02:09.7]} 24... Nxe4 {[%clk
0:01:32.9]} 25. Nde7+ {[%clk 0:02:00.6]} 25... Kh8 {[%clk 0:01:30.3]} 26. Qd3
{[%clk 0:02:02.2]} 26... Nc3 {[%clk 0:01:24.6]} 27. Bxb6 {[%clk 0:02:03]} 27...
Nxb1 {[%clk 0:01:25]} 28. Rxb1 {[%clk 0:01:58]} 28... a4 {[%clk 0:01:26.3]} 29.
bxa4 {[%clk 0:01:53.1]} 29... Rxa4 {[%clk 0:01:28.2]} 30. Bc5 {[%clk 0:01:42.8]}
30... d5 {[%clk 0:01:11.3]} 31. Rd1 {[%clk 0:01:37.2]} 31... Re8 {[%clk
0:01:02.6]} 32. g3 {[%clk 0:01:33]} 32... d4 {[%clk 0:00:42.6]} 33. Qb3 {[%clk
0:01:29.5]} 33... Ra6 {[%clk 0:00:34.9]} 34. Qxf7 {[%clk 0:01:26.7]} 34... Rxc6
{[%clk 0:00:15.1]} 35. Nxg6+ {[%clk 0:01:27.1]} 35... hxg6 {[%clk 0:00:13.9]}
36. Qxd7 {[%clk 0:01:29]} 1-0

[Event "*** Titled Tuesday 3|2 Blitz (Early)"]
[Site "Chess.com"]
[Date "2016.12.06"]
[Round "5"]
[White "Kouzari"]
[Black "Sethu0025"]
[Result "0-1"]
[WhiteElo "2476"]
[BlackElo "2612"]
[TimeControl "180+2"]
[EndTime "12:00:46 PST"]
[Termination "Sethu0025 won by resignation"]

1. d4 {[%clk 0:03:02]} 1... Nf6 {[%clk 0:03:01.1]} 2. c4 {[%clk 0:03:03.9]} 2...
e6 {[%clk 0:03:02.3]} 3. Nc3 {[%clk 0:03:05.4]} 3... Bb4 {[%clk 0:03:02.4]} 4.
g3 {[%clk 0:03:06.9]} 4... d5 {[%clk 0:03:02.6]} 5. Bg2 {[%clk 0:03:08.2]} 5...
O-O {[%clk 0:03:00.5]} 6. Nf3 {[%clk 0:03:09.7]} 6... dxc4 {[%clk 0:03:01.2]} 7.
O-O {[%clk 0:03:11.1]} 7... Nc6 {[%clk 0:03:01.8]} 8. a3 {[%clk 0:03:12.7]} 8...
Be7 {[%clk 0:03:01.4]} 9. e4 {[%clk 0:03:12.4]} 9... Rb8 {[%clk 0:02:59.5]} 10.
Qe2 {[%clk 0:03:13.1]} 10... b5 {[%clk 0:02:56.7]} 11. Bf4 {[%clk 0:03:11.4]}
11... Na5 {[%clk 0:02:52.3]} 12. Rad1 {[%clk 0:03:12.2]} 12... Ba6 {[%clk
0:02:22.9]} 13. Ne5 {[%clk 0:03:11]} 13... b4 {[%clk 0:02:16.5]} 14. axb4 {[%clk
0:03:10.4]} 14... Bxb4 {[%clk 0:02:17.4]} 15. g4 {[%clk 0:03:06.8]} 15... Nd7
{[%clk 0:02:17.4]} 16. g5 {[%clk 0:03:07.4]} 16... Nxe5 {[%clk 0:02:15.9]} 17.
dxe5 {[%clk 0:03:08.2]} 17... Qe7 {[%clk 0:02:13.2]} 18. Qh5 {[%clk 0:03:09]}
18... Rfd8 {[%clk 0:02:10.6]} 19. Ra1 {[%clk 0:02:51]} 19... Bb7 {[%clk
0:02:02.4]} 20. Qg4 {[%clk 0:02:51.9]} 20... Rd3 {[%clk 0:01:59.1]} 21. h4
{[%clk 0:02:46.4]} 21... Rbd8 {[%clk 0:01:56.9]} 22. h5 {[%clk 0:02:46]} 22...
a6 {[%clk 0:01:50.9]} 23. g6 {[%clk 0:02:46.7]} 23... fxg6 {[%clk 0:01:51.9]}
24. hxg6 {[%clk 0:02:47.5]} 24... h6 {[%clk 0:01:53.2]} 25. Bh3 {[%clk
0:02:36.4]} 25... Bc8 {[%clk 0:01:54]} 26. Bg3 {[%clk 0:02:34.6]} 26... Qc5
{[%clk 0:01:46.1]} 27. Qf4 {[%clk 0:02:20.3]} 27... Rf8 {[%clk 0:01:46.5]} 28.
Qh4 {[%clk 0:02:14.3]} 28... Nb3 {[%clk 0:01:47.5]} 29. Rad1 {[%clk 0:01:54]}
29... Nd2 {[%clk 0:01:39.8]} 30. Rxd2 {[%clk 0:01:50.6]} 30... Rxd2 {[%clk
0:01:40]} 31. Bf4 {[%clk 0:01:52.2]} 31... Rd3 {[%clk 0:01:32.6]} 32. Bg4 {[%clk
0:01:46.9]} 32... Rxf4 {[%clk 0:01:29.6]} 33. Bxe6+ {[%clk 0:01:41.5]} 33...
Bxe6 {[%clk 0:01:30]} 34. Qxf4 {[%clk 0:01:43.4]} 34... Qe7 {[%clk 0:01:20.3]}
35. Ra1 {[%clk 0:01:23.9]} 35... a5 {[%clk 0:01:20.7]} 36. Nd5 {[%clk
0:01:19.1]} 36... Bxd5 {[%clk 0:01:14.7]} 37. exd5 {[%clk 0:01:20.5]} 37... Rxd5
{[%clk 0:01:14.4]} 38. Qxc4 {[%clk 0:01:21.3]} 38... Qe6 {[%clk 0:01:06.6]} 39.
Qxc7 {[%clk 0:01:08.3]} 39... Qxg6+ {[%clk 0:01:05.8]} 40. Kf1 {[%clk
0:01:07.8]} 40... Qe4 {[%clk 0:01:00.5]} 0-1